Workbook

Sheet Portefeuille
A1: Evaluatiedatum | B1: 42319 | D1: Verhoog stop-loss met | E1: 0.03
D2: Stop-loss bijwerken | E2: Op vraag
D3: Geselecteerde rij | E3: 28
A5: Portefeuilledatum | B5: =SUM(Fondsen[Form date Portefeuille]) -> 40694
A6: Annual portefeuille | B6: =IF(Evaluatiedatum-Portefeuilledatum>365, ((SUM(Fondsen[Totale waarde])/SUM(Fondsen[Totale investering in EUR]))^(365.25/(Evaluatiedatum-Portefeuilledatum))-1),"") -> -0.6746777412
A7: Meerwaarde | B7: =SUM(Fondsen[Totale waarde])-SUM(Fondsen[Totale investering in EUR]) -> -102688.56 | D7: Franky-Matic v1.8
A9: FONDSEN
A10: ISIN | B10: Beheerder | C10: Naam Fonds | D10: Categorie | E10: K/S | F10: Huidige Waarde | G10: Munt | H10: Huidige waarde in EUR | I10: 90% | J10: R ST LOSS | K10: CTR ST L | L10: ACTIE | M10: Totale investering in EUR | N10: Totale waarde | O10: Aantal | P10: Meerwaarde bedrag | Q10: Meerwaarde % | R10: Participatie investering | S10: Totale aankoop in EUR | T10: Form date Fonds | U10: Form date Portefeuille | V10: Form date Visible | W10: Annual | X10: Vorige totale waarde | Y10: Vorige waarde in EUR | Z10: +/- | AA10: Broker | AB10: Laatste update RSL
A11: LU1056593699 | B11: BNP | C11: BNP Paribas L1 Eq Wld Guru | D11: aand. Wld | F11: 242.14 | G11: EUR | H11: =Fondsen[[#This Row],[Huidige Waarde]]/VLOOKUP(Fondsen[[#This Row],[Munt]],Koersen[],2,FALSE) -> 242.14 | I11: =Fondsen[[#This Row],[Huidige waarde in EUR]]*0.9 -> 217.926 | J11: 217.15133 | K11: =[90%]-[R ST LOSS] -> 0.77467 | L11: =(Fondsen[[#This Row],[Huidige waarde in EUR]]-Fondsen[[#This Row],[R ST LOSS]])/Fondsen[[#This Row],[Huidige waarde in EUR]] -> 0.1031992649 | M11: =SUM(IF(Fondsen[[#This Row],[ISIN]]=TransactiesIn[ISIN],TransactiesIn[Investering in EUR]))-SUM(IF(Fondsen[[#This Row],[ISIN]]=TransactiesOut[ISIN],TransactiesOut[Opbrengst in EUR])) -> 2979 | N11: =[Aantal]*[Huidige waarde in EUR] -> 242.14 | O11: =SUM(IF(Fondsen[[#This Row],[ISIN]]=TransactiesIn[ISIN],TransactiesIn[Aantal]))-SUM(IF(Fondsen[[#This Row],[ISIN]]=TransactiesOut[ISIN],TransactiesOut[Aantal])) -> 1 | P11: =Fondsen[[#This Row],[Totale waarde]]-Fondsen[[#This Row],[Totale investering in EUR]] -> -2736.86 | Q11: =(Fondsen[[#This Row],[Totale waarde]]-Fondsen[[#This Row],[Totale investering in EUR]])/ABS(Fondsen[[#This Row],[Totale investering in EUR]]) -> -0.9187176905 | R11: =Fondsen[[#This Row],[Totale waarde]]/SUM([Totale waarde]) -> 0.3461912387 | S11: =SUM(IF(Fondsen[[#This Row],[ISIN]]=TransactiesIn[ISIN],TransactiesIn[Investering in EUR])) -> 2979 | T11: =ROUND(SUM(IF(Fondsen[[#This Row],[ISIN]]=TransactiesIn[ISIN],(TransactiesIn[Datum Aankoop]*TransactiesIn[Investering in EUR])/Fondsen[[#This Row],[Totale aankoop in EUR]])),0) -> 32673 | U11: =ROUND(Fondsen[[#This Row],[Form date Fonds]]*Fondsen[[#This Row],[Totale investering in EUR]]/SUM([Totale investering in EUR]),0) -> 941 | V11: =ROUND(Fondsen[[#This Row],[Form date Fonds]]*Fondsen[[#This Row],[Totale investering in EUR]]/Fondsen[[#Totals],[Totale investering in EUR]],0) -> 941 | W11: =IF(Evaluatiedatum-Fondsen[[#This Row],[Form date Fonds]]>365, ((Fondsen[[#This Row],[Totale waarde]]/Fondsen[[#This Row],[Totale investering in EUR]])^(365.25/(Evaluatiedatum-Fondsen[[#This Row],[Form date Fonds]]))-1),"") -> -0.09065952073 | X11: 7221.3 | Y11: 240.71 | Z11: =IF(Fondsen[[#This Row],[Vorige waarde in EUR]]<>0, (Fondsen[[#This Row],[Huidige waarde in EUR]]-Fondsen[[#This Row],[Vorige waarde in EUR]])/Fondsen[[#This Row],[Vorige waarde in EUR]],0) -> 0.005940758589 | AA11: BNP | AB11: 42318
A12: LU1056591487 | B12: BNP | C12: BNP Paribas L1 Eq Wld Qual Focus Cla-Cap | D12: aand. Wld | F12: 148.17 | G12: EUR | H12: =Fondsen[[#This Row],[Huidige Waarde]]/VLOOKUP(Fondsen[[#This Row],[Munt]],Koersen[],2,FALSE) -> 148.17 | I12: =Fondsen[[#This Row],[Huidige waarde in EUR]]*0.9 -> 133.353 | J12: 136.10889 | K12: =[90%]-[R ST LOSS] -> -2.75589 | L12: =(Fondsen[[#This Row],[Huidige waarde in EUR]]-Fondsen[[#This Row],[R ST LOSS]])/Fondsen[[#This Row],[Huidige waarde in EUR]] -> 0.08140048593 | M12: =SUM(IF(Fondsen[[#This Row],[ISIN]]=TransactiesIn[ISIN],TransactiesIn[Investering in EUR]))-SUM(IF(Fondsen[[#This Row],[ISIN]]=TransactiesOut[ISIN],TransactiesOut[Opbrengst in EUR])) -> 3640 | N12: =[Aantal]*[Huidige waarde in EUR] -> 148.17 | O12: =SUM(IF(Fondsen[[#This Row],[ISIN]]=TransactiesIn[ISIN],TransactiesIn[Aantal]))-SUM(IF(Fondsen[[#This Row],[ISIN]]=TransactiesOut[ISIN],TransactiesOut[Aantal])) -> 1 | P12: =Fondsen[[#This Row],[Totale waarde]]-Fondsen[[#This Row],[Totale investering in EUR]] -> -3491.83 | Q12: =(Fondsen[[#This Row],[Totale waarde]]-Fondsen[[#This Row],[Totale investering in EUR]])/ABS(Fondsen[[#This Row],[Totale investering in EUR]]) -> -0.959293956 | R12: =Fondsen[[#This Row],[Totale waarde]]/SUM([Totale waarde]) -> 0.2118409013 | S12: =SUM(IF(Fondsen[[#This Row],[ISIN]]=TransactiesIn[ISIN],TransactiesIn[Investering in EUR])) -> 3640 | T12: =ROUND(SUM(IF(Fondsen[[#This Row],[ISIN]]=TransactiesIn[ISIN],(TransactiesIn[Datum Aankoop]*TransactiesIn[Investering in EUR])/Fondsen[[#This Row],[Totale aankoop in EUR]])),0) -> 36220 | U12: =ROUND(Fondsen[[#This Row],[Form date Fonds]]*Fondsen[[#This Row],[Totale investering in EUR]]/SUM([Totale investering in EUR]),0) -> 1275 | V12: =ROUND(Fondsen[[#This Row],[Form date Fonds]]*Fondsen[[#This Row],[Totale investering in EUR]]/Fondsen[[#Totals],[Totale investering in EUR]],0) -> 1275 | W12: =IF(Evaluatiedatum-Fondsen[[#This Row],[Form date Fonds]]>365, ((Fondsen[[#This Row],[Totale waarde]]/Fondsen[[#This Row],[Totale investering in EUR]])^(365.25/(Evaluatiedatum-Fondsen[[#This Row],[Form date Fonds]]))-1),"") -> -0.1744624584 | X12: 3275.14 | Y12: 148.87 | Z12: =IF(Fondsen[[#This Row],[Vorige waarde in EUR]]<>0, (Fondsen[[#This Row],[Huidige waarde in EUR]]-Fondsen[[#This Row],[Vorige waarde in EUR]])/Fondsen[[#This Row],[Vorige waarde in EUR]],0) -> -0.004702089071 | AA12: BNP | AB12: 42318
A13: LU0318931192 | B13: Fidel | C13: Fid. China Foc Fd A EUR | D13: aand. China | F13: 13.91 | G13: EUR | H13: =Fondsen[[#This Row],[Huidige Waarde]]/VLOOKUP(Fondsen[[#This Row],[Munt]],Koersen[],2,FALSE) -> 13.91 | I13: =Fondsen[[#This Row],[Huidige waarde in EUR]]*0.9 -> 12.519 | J13: 12.87317 | K13: =[90%]-[R ST LOSS] -> -0.35417 | L13: =(Fondsen[[#This Row],[Huidige waarde in EUR]]-Fondsen[[#This Row],[R ST LOSS]])/Fondsen[[#This Row],[Huidige waarde in EUR]] -> 0.07453846154 | M13: =SUM(IF(Fondsen[[#This Row],[ISIN]]=TransactiesIn[ISIN],TransactiesIn[Investering in EUR]))-SUM(IF(Fondsen[[#This Row],[ISIN]]=TransactiesOut[ISIN],TransactiesOut[Opbrengst in EUR])) -> 20390 | N13: =[Aantal]*[Huidige waarde in EUR] -> 13.91 | O13: =SUM(IF(Fondsen[[#This Row],[ISIN]]=TransactiesIn[ISIN],TransactiesIn[Aantal]))-SUM(IF(Fondsen[[#This Row],[ISIN]]=TransactiesOut[ISIN],TransactiesOut[Aantal])) -> 1 | P13: =Fondsen[[#This Row],[Totale waarde]]-Fondsen[[#This Row],[Totale investering in EUR]] -> -20376.09 | Q13: =(Fondsen[[#This Row],[Totale waarde]]-Fondsen[[#This Row],[Totale investering in EUR]])/ABS(Fondsen[[#This Row],[Totale investering in EUR]]) -> -0.9993178028 | R13: =Fondsen[[#This Row],[Totale waarde]]/SUM([Totale waarde]) -> 0.01988733844 | S13: =SUM(IF(Fondsen[[#This Row],[ISIN]]=TransactiesIn[ISIN],TransactiesIn[Investering in EUR])) -> 20390 | T13: =ROUND(SUM(IF(Fondsen[[#This Row],[ISIN]]=TransactiesIn[ISIN],(TransactiesIn[Datum Aankoop]*TransactiesIn[Investering in EUR])/Fondsen[[#This Row],[Totale aankoop in EUR]])),0) -> 41292 | U13: =ROUND(Fondsen[[#This Row],[Form date Fonds]]*Fondsen[[#This Row],[Totale investering in EUR]]/SUM([Totale investering in EUR]),0) -> 8144 | V13: =ROUND(Fondsen[[#This Row],[Form date Fonds]]*Fondsen[[#This Row],[Totale investering in EUR]]/Fondsen[[#Totals],[Totale investering in EUR]],0) -> 8144 | W13: =IF(Evaluatiedatum-Fondsen[[#This Row],[Form date Fonds]]>365, ((Fondsen[[#This Row],[Totale waarde]]/Fondsen[[#This Row],[Totale investering in EUR]])^(365.25/(Evaluatiedatum-Fondsen[[#This Row],[Form date Fonds]]))-1),"") -> -0.9251851312 | X13: 30976 | Y13: 14.08 | Z13: =IF(Fondsen[[#This Row],[Vorige waarde in EUR]]<>0, (Fondsen[[#This Row],[Huidige waarde in EUR]]-Fondsen[[#This Row],[Vorige waarde in EUR]])/Fondsen[[#This Row],[Vorige waarde in EUR]],0) -> -0.01207386364 | AA13: KEY | AB13: 42318
A14: FR0010345389 | B14: Lyxor | C14: Lyxor UCITS ETF Stoxx Europe 600 Bas.Resour | D14: aand. Grondstof | F14: 32.79 | G14: EUR | H14: =Fondsen[[#This Row],[Huidige Waarde]]/VLOOKUP(Fondsen[[#This Row],[Munt]],Koersen[],2,FALSE) -> 32.79 | I14: =Fondsen[[#This Row],[Huidige waarde in EUR]]*0.9 -> 29.511 | J14: 31.59396 | K14: =[90%]-[R ST LOSS] -> -2.08296 | L14: =(Fondsen[[#This Row],[Huidige waarde in EUR]]-Fondsen[[#This Row],[R ST LOSS]])/Fondsen[[#This Row],[Huidige waarde in EUR]] -> 0.0364757548 | M14: =SUM(IF(Fondsen[[#This Row],[ISIN]]=TransactiesIn[ISIN],TransactiesIn[Investering in EUR]))-SUM(IF(Fondsen[[#This Row],[ISIN]]=TransactiesOut[ISIN],TransactiesOut[Opbrengst in EUR])) -> 12241 | N14: =[Aantal]*[Huidige waarde in EUR] -> 32.79 | O14: =SUM(IF(Fondsen[[#This Row],[ISIN]]=TransactiesIn[ISIN],TransactiesIn[Aantal]))-SUM(IF(Fondsen[[#This Row],[ISIN]]=TransactiesOut[ISIN],TransactiesOut[Aantal])) -> 1 | P14: =Fondsen[[#This Row],[Totale waarde]]-Fondsen[[#This Row],[Totale investering in EUR]] -> -12208.21 | Q14: =(Fondsen[[#This Row],[Totale waarde]]-Fondsen[[#This Row],[Totale investering in EUR]])/ABS(Fondsen[[#This Row],[Totale investering in EUR]]) -> -0.9973212973 | R14: =Fondsen[[#This Row],[Totale waarde]]/SUM([Totale waarde]) -> 0.04688036143 | S14: =SUM(IF(Fondsen[[#This Row],[ISIN]]=TransactiesIn[ISIN],TransactiesIn[Investering in EUR])) -> 12241 | T14: =ROUND(SUM(IF(Fondsen[[#This Row],[ISIN]]=TransactiesIn[ISIN],(TransactiesIn[Datum Aankoop]*TransactiesIn[Investering in EUR])/Fondsen[[#This Row],[Totale aankoop in EUR]])),0) -> 42292 | U14: =ROUND(Fondsen[[#This Row],[Form date Fonds]]*Fondsen[[#This Row],[Totale investering in EUR]]/SUM([Totale investering in EUR]),0) -> 5007 | V14: =ROUND(Fondsen[[#This Row],[Form date Fonds]]*Fondsen[[#This Row],[Totale investering in EUR]]/Fondsen[[#Totals],[Totale investering in EUR]],0) -> 5007 | W14: =IF(Evaluatiedatum-Fondsen[[#This Row],[Form date Fonds]]>365, ((Fondsen[[#This Row],[Totale waarde]]/Fondsen[[#This Row],[Totale investering in EUR]])^(365.25/(Evaluatiedatum-Fondsen[[#This Row],[Form date Fonds]]))-1),"") ->  | X14: 11476.5 | Y14: 32.79 | Z14: =IF(Fondsen[[#This Row],[Vorige waarde in EUR]]<>0, (Fondsen[[#This Row],[Huidige waarde in EUR]]-Fondsen[[#This Row],[Vorige waarde in EUR]])/Fondsen[[#This Row],[Vorige waarde in EUR]],0) -> 0 | AA14: KEY | AB14: 42318
A15: lu0095527585 | B15: NN | C15: NN (L) Euro Equity - P Cap EUR | D15: aandelen eurozone | F15: 145.09 | G15: EUR | H15: =Fondsen[[#This Row],[Huidige Waarde]]/VLOOKUP(Fondsen[[#This Row],[Munt]],Koersen[],2,FALSE) -> 145.09 | I15: =Fondsen[[#This Row],[Huidige waarde in EUR]]*0.9 -> 130.581 | J15: 131.54941 | K15: =[90%]-[R ST LOSS] -> -0.96841 | L15: =(Fondsen[[#This Row],[Huidige waarde in EUR]]-Fondsen[[#This Row],[R ST LOSS]])/Fondsen[[#This Row],[Huidige waarde in EUR]] -> 0.09332545317 | M15: =SUM(IF(Fondsen[[#This Row],[ISIN]]=TransactiesIn[ISIN],TransactiesIn[Investering in EUR]))-SUM(IF(Fondsen[[#This Row],[ISIN]]=TransactiesOut[ISIN],TransactiesOut[Opbrengst in EUR])) -> 5845 | N15: =[Aantal]*[Huidige waarde in EUR] -> 145.09 | O15: =SUM(IF(Fondsen[[#This Row],[ISIN]]=TransactiesIn[ISIN],TransactiesIn[Aantal]))-SUM(IF(Fondsen[[#This Row],[ISIN]]=TransactiesOut[ISIN],TransactiesOut[Aantal])) -> 1 | P15: =Fondsen[[#This Row],[Totale waarde]]-Fondsen[[#This Row],[Totale investering in EUR]] -> -5699.91 | Q15: =(Fondsen[[#This Row],[Totale waarde]]-Fondsen[[#This Row],[Totale investering in EUR]])/ABS(Fondsen[[#This Row],[Totale investering in EUR]]) -> -0.9751770744 | R15: =Fondsen[[#This Row],[Totale waarde]]/SUM([Totale waarde]) -> 0.2074373785 | S15: =SUM(IF(Fondsen[[#This Row],[ISIN]]=TransactiesIn[ISIN],TransactiesIn[Investering in EUR])) -> 5845 | T15: =ROUND(SUM(IF(Fondsen[[#This Row],[ISIN]]=TransactiesIn[ISIN],(TransactiesIn[Datum Aankoop]*TransactiesIn[Investering in EUR])/Fondsen[[#This Row],[Totale aankoop in EUR]])),0) -> 34403 | U15: =ROUND(Fondsen[[#This Row],[Form date Fonds]]*Fondsen[[#This Row],[Totale investering in EUR]]/SUM([Totale investering in EUR]),0) -> 1945 | V15: =ROUND(Fondsen[[#This Row],[Form date Fonds]]*Fondsen[[#This Row],[Totale investering in EUR]]/Fondsen[[#Totals],[Totale investering in EUR]],0) -> 1945 | W15: =IF(Evaluatiedatum-Fondsen[[#This Row],[Form date Fonds]]>365, ((Fondsen[[#This Row],[Totale waarde]]/Fondsen[[#This Row],[Totale investering in EUR]])^(365.25/(Evaluatiedatum-Fondsen[[#This Row],[Form date Fonds]]))-1),"") -> -0.1567868946 | X15: 20659.21 | Y15: 144.47 | Z15: =IF(Fondsen[[#This Row],[Vorige waarde in EUR]]<>0, (Fondsen[[#This Row],[Huidige waarde in EUR]]-Fondsen[[#This Row],[Vorige waarde in EUR]])/Fondsen[[#This Row],[Vorige waarde in EUR]],0) -> 0.004291548418 | AA15: ING | AB15: 42318
A16: LU0995123261 | B16: Schrod | C16: Schroders SISF UK Equity | D16: aand. UK | F16: 103.37 | G16: EUR | H16: =Fondsen[[#This Row],[Huidige Waarde]]/VLOOKUP(Fondsen[[#This Row],[Munt]],Koersen[],2,FALSE) -> 103.37 | I16: =Fondsen[[#This Row],[Huidige waarde in EUR]]*0.9 -> 93.033 | J16: 93.7645 | K16: =[90%]-[R ST LOSS] -> -0.7315 | L16: =(Fondsen[[#This Row],[Huidige waarde in EUR]]-Fondsen[[#This Row],[R ST LOSS]])/Fondsen[[#This Row],[Huidige waarde in EUR]] -> 0.09292347877 | M16: =SUM(IF(Fondsen[[#This Row],[ISIN]]=TransactiesIn[ISIN],TransactiesIn[Investering in EUR]))-SUM(IF(Fondsen[[#This Row],[ISIN]]=TransactiesOut[ISIN],TransactiesOut[Opbrengst in EUR])) -> 10639 | N16: =[Aantal]*[Huidige waarde in EUR] -> 103.37 | O16: =SUM(IF(Fondsen[[#This Row],[ISIN]]=TransactiesIn[ISIN],TransactiesIn[Aantal]))-SUM(IF(Fondsen[[#This Row],[ISIN]]=TransactiesOut[ISIN],TransactiesOut[Aantal])) -> 1 | P16: =Fondsen[[#This Row],[Totale waarde]]-Fondsen[[#This Row],[Totale investering in EUR]] -> -10535.63 | Q16: =(Fondsen[[#This Row],[Totale waarde]]-Fondsen[[#This Row],[Totale investering in EUR]])/ABS(Fondsen[[#This Row],[Totale investering in EUR]]) -> -0.9902838613 | R16: =Fondsen[[#This Row],[Totale waarde]]/SUM([Totale waarde]) -> 0.1477896603 | S16: =SUM(IF(Fondsen[[#This Row],[ISIN]]=TransactiesIn[ISIN],TransactiesIn[Investering in EUR])) -> 11230 | T16: =ROUND(SUM(IF(Fondsen[[#This Row],[ISIN]]=TransactiesIn[ISIN],(TransactiesIn[Datum Aankoop]*TransactiesIn[Investering in EUR])/Fondsen[[#This Row],[Totale aankoop in EUR]])),0) -> 41409 | U16: =ROUND(Fondsen[[#This Row],[Form date Fonds]]*Fondsen[[#This Row],[Totale investering in EUR]]/SUM([Totale investering in EUR]),0) -> 4261 | V16: =ROUND(Fondsen[[#This Row],[Form date Fonds]]*Fondsen[[#This Row],[Totale investering in EUR]]/Fondsen[[#Totals],[Totale investering in EUR]],0) -> 4261 | W16: =IF(Evaluatiedatum-Fondsen[[#This Row],[Form date Fonds]]>365, ((Fondsen[[#This Row],[Totale waarde]]/Fondsen[[#This Row],[Totale investering in EUR]])^(365.25/(Evaluatiedatum-Fondsen[[#This Row],[Form date Fonds]]))-1),"") -> -0.8443199182 | X16: 12201.04827 | Y16: 102.23 | Z16: =IF(Fondsen[[#This Row],[Vorige waarde in EUR]]<>0, (Fondsen[[#This Row],[Huidige waarde in EUR]]-Fondsen[[#This Row],[Vorige waarde in EUR]])/Fondsen[[#This Row],[Vorige waarde in EUR]],0) -> 0.01115132544 | AA16: KEY | AB16: 42318
A17: LU1159236501 | B17: SSGA | C17: State Street Europe Index Equity Fund P | D17: aandelen eurozone | F17: 10.79 | G17: EUR | H17: =Fondsen[[#This Row],[Huidige Waarde]]/VLOOKUP(Fondsen[[#This Row],[Munt]],Koersen[],2,FALSE) -> 10.79 | I17: =Fondsen[[#This Row],[Huidige waarde in EUR]]*0.9 -> 9.711 | J17: 9.83204 | K17: =[90%]-[R ST LOSS] -> -0.12104 | L17: =(Fondsen[[#This Row],[Huidige waarde in EUR]]-Fondsen[[#This Row],[R ST LOSS]])/Fondsen[[#This Row],[Huidige waarde in EUR]] -> 0.08878220575 | M17: =SUM(IF(Fondsen[[#This Row],[ISIN]]=TransactiesIn[ISIN],TransactiesIn[Investering in EUR]))-SUM(IF(Fondsen[[#This Row],[ISIN]]=TransactiesOut[ISIN],TransactiesOut[Opbrengst in EUR])) -> 37746 | N17: =[Aantal]*[Huidige waarde in EUR] -> 10.79 | O17: =SUM(IF(Fondsen[[#This Row],[ISIN]]=TransactiesIn[ISIN],TransactiesIn[Aantal]))-SUM(IF(Fondsen[[#This Row],[ISIN]]=TransactiesOut[ISIN],TransactiesOut[Aantal])) -> 1 | P17: =Fondsen[[#This Row],[Totale waarde]]-Fondsen[[#This Row],[Totale investering in EUR]] -> -37735.21 | Q17: =(Fondsen[[#This Row],[Totale waarde]]-Fondsen[[#This Row],[Totale investering in EUR]])/ABS(Fondsen[[#This Row],[Totale investering in EUR]]) -> -0.9997141419 | R17: =Fondsen[[#This Row],[Totale waarde]]/SUM([Totale waarde]) -> 0.01542662702 | S17: =SUM(IF(Fondsen[[#This Row],[ISIN]]=TransactiesIn[ISIN],TransactiesIn[Investering in EUR])) -> 37746 | T17: =ROUND(SUM(IF(Fondsen[[#This Row],[ISIN]]=TransactiesIn[ISIN],(TransactiesIn[Datum Aankoop]*TransactiesIn[Investering in EUR])/Fondsen[[#This Row],[Totale aankoop in EUR]])),0) -> 41325 | U17: =ROUND(Fondsen[[#This Row],[Form date Fonds]]*Fondsen[[#This Row],[Totale investering in EUR]]/SUM([Totale investering in EUR]),0) -> 15087 | V17: =ROUND(Fondsen[[#This Row],[Form date Fonds]]*Fondsen[[#This Row],[Totale investering in EUR]]/Fondsen[[#Totals],[Totale investering in EUR]],0) -> 15087 | W17: =IF(Evaluatiedatum-Fondsen[[#This Row],[Form date Fonds]]>365, ((Fondsen[[#This Row],[Totale waarde]]/Fondsen[[#This Row],[Totale investering in EUR]])^(365.25/(Evaluatiedatum-Fondsen[[#This Row],[Form date Fonds]]))-1),"") -> -0.9501350087 | X17: 45000.6661 | Y17: 10.79 | Z17: =IF(Fondsen[[#This Row],[Vorige waarde in EUR]]<>0, (Fondsen[[#This Row],[Huidige waarde in EUR]]-Fondsen[[#This Row],[Vorige waarde in EUR]])/Fondsen[[#This Row],[Vorige waarde in EUR]],0) -> 0 | AA17: FORTUN | AB17: 42318
A18: GB0002771169 | B18: Thread | C18: Threadn. Eur Sel Retail Net EUR KAP | D18: aand.eurozone ex UK | F18: 3.18 | G18: EUR | H18: =Fondsen[[#This Row],[Huidige Waarde]]/VLOOKUP(Fondsen[[#This Row],[Munt]],Koersen[],2,FALSE) -> 3.18 | I18: =Fondsen[[#This Row],[Huidige waarde in EUR]]*0.9 -> 2.862 | J18: 2.87243 | K18: =[90%]-[R ST LOSS] -> -0.01043 | L18: =(Fondsen[[#This Row],[Huidige waarde in EUR]]-Fondsen[[#This Row],[R ST LOSS]])/Fondsen[[#This Row],[Huidige waarde in EUR]] -> 0.09672012579 | M18: =SUM(IF(Fondsen[[#This Row],[ISIN]]=TransactiesIn[ISIN],TransactiesIn[Investering in EUR]))-SUM(IF(Fondsen[[#This Row],[ISIN]]=TransactiesOut[ISIN],TransactiesOut[Opbrengst in EUR])) -> 9908 | N18: =[Aantal]*[Huidige waarde in EUR] -> 3.18 | O18: =SUM(IF(Fondsen[[#This Row],[ISIN]]=TransactiesIn[ISIN],TransactiesIn[Aantal]))-SUM(IF(Fondsen[[#This Row],[ISIN]]=TransactiesOut[ISIN],TransactiesOut[Aantal])) -> 1 | P18: =Fondsen[[#This Row],[Totale waarde]]-Fondsen[[#This Row],[Totale investering in EUR]] -> -9904.82 | Q18: =(Fondsen[[#This Row],[Totale waarde]]-Fondsen[[#This Row],[Totale investering in EUR]])/ABS(Fondsen[[#This Row],[Totale investering in EUR]]) -> -0.9996790472 | R18: =Fondsen[[#This Row],[Totale waarde]]/SUM([Totale waarde]) -> 0.004546494338 | S18: =SUM(IF(Fondsen[[#This Row],[ISIN]]=TransactiesIn[ISIN],TransactiesIn[Investering in EUR])) -> 9908 | T18: =ROUND(SUM(IF(Fondsen[[#This Row],[ISIN]]=TransactiesIn[ISIN],(TransactiesIn[Datum Aankoop]*TransactiesIn[Investering in EUR])/Fondsen[[#This Row],[Totale aankoop in EUR]])),0) -> 42089 | U18: =ROUND(Fondsen[[#This Row],[Form date Fonds]]*Fondsen[[#This Row],[Totale investering in EUR]]/SUM([Totale investering in EUR]),0) -> 4034 | V18: =ROUND(Fondsen[[#This Row],[Form date Fonds]]*Fondsen[[#This Row],[Totale investering in EUR]]/Fondsen[[#Totals],[Totale investering in EUR]],0) -> 4034 | W18: =IF(Evaluatiedatum-Fondsen[[#This Row],[Form date Fonds]]>365, ((Fondsen[[#This Row],[Totale waarde]]/Fondsen[[#This Row],[Totale investering in EUR]])^(365.25/(Evaluatiedatum-Fondsen[[#This Row],[Form date Fonds]]))-1),"") ->  | X18: 9937.5 | Y18: 3.18 | Z18: =IF(Fondsen[[#This Row],[Vorige waarde in EUR]]<>0, (Fondsen[[#This Row],[Huidige waarde in EUR]]-Fondsen[[#This Row],[Vorige waarde in EUR]])/Fondsen[[#This Row],[Vorige waarde in EUR]],0) -> 0 | AA18: BKCP | AB18: 42318
M19: =SUBTOTAL(9,[Totale investering in EUR]) -> 103388 | N19: =SUBTOTAL(9,[Totale waarde]) -> 699.44 | P19: =SUBTOTAL(9,[Meerwaarde bedrag]) -> -102688.56 | Q19: =(Fondsen[[#Totals],[Totale waarde]]-Fondsen[[#Totals],[Totale investering in EUR]])/Fondsen[[#Totals],[Totale investering in EUR]] -> -0.9932348048 | R19: =SUBTOTAL(9,[Totale waarde])/SUM([Totale waarde]) -> 1 | W19: =IF(Evaluatiedatum-SUBTOTAL(9,[Form date Visible])>365, ((SUBTOTAL(9,[Totale waarde])/SUBTOTAL(9,[Totale investering in EUR]))^(365.25/(Evaluatiedatum-SUBTOTAL(9,[Form date Visible])))-1),"") -> -0.6746777412 | X19: =SUM([Vorige totale waarde]) -> 140747.3644 | Y19: =SUM([Vorige waarde in EUR]) -> 697.12 | Z19: =IF(SUBTOTAL(9,[Vorige totale waarde])<>0,(SUBTOTAL(9,[Totale waarde])-SUBTOTAL(9,[Vorige totale waarde]))/SUBTOTAL(9,[Vorige totale waarde]),0) -> -0.9950305286
A28: TRANSACTIES IN
A29: ISIN | B29: Beheerder | C29: Naam Fonds | D29: Categorie | E29: Investering in EUR | F29: Datum Aankoop | G29: Aantal | H29: Stukprijs
A30: LU1159236501 | B30: =VLOOKUP(TransactiesIn[[#This Row],[ISIN]],Fondsen[],COLUMN(Fondsen[[#Headers],[Beheerder]]),FALSE) -> SSGA | C30: =VLOOKUP(TransactiesIn[[#This Row],[ISIN]],Fondsen[],COLUMN(Fondsen[[#Headers],[Naam Fonds]]),FALSE) -> State Street Europe Index Equity Fund P | D30: =VLOOKUP(TransactiesIn[[#This Row],[ISIN]],Fondsen[],COLUMN(Fondsen[[#Headers],[Categorie]]),FALSE) -> aandelen eurozone | E30: 37746 | F30: 41325 | G30: 1 | H30: =IF(TransactiesIn[[#This Row],[Aantal]]<>0,TransactiesIn[[#This Row],[Investering in EUR]]/TransactiesIn[[#This Row],[Aantal]],"") -> 37746
A31: LU1056593699 | B31: =VLOOKUP(TransactiesIn[[#This Row],[ISIN]],Fondsen[],COLUMN(Fondsen[[#Headers],[Beheerder]]),FALSE) -> BNP | C31: =VLOOKUP(TransactiesIn[[#This Row],[ISIN]],Fondsen[],COLUMN(Fondsen[[#Headers],[Naam Fonds]]),FALSE) -> BNP Paribas L1 Eq Wld Guru | D31: =VLOOKUP(TransactiesIn[[#This Row],[ISIN]],Fondsen[],COLUMN(Fondsen[[#Headers],[Categorie]]),FALSE) -> aand. Wld | E31: 2979 | F31: 32673 | G31: 1 | H31: =IF(TransactiesIn[[#This Row],[Aantal]]<>0,TransactiesIn[[#This Row],[Investering in EUR]]/TransactiesIn[[#This Row],[Aantal]],"") -> 2979
A32: LU0095527585 | B32: =VLOOKUP(TransactiesIn[[#This Row],[ISIN]],Fondsen[],COLUMN(Fondsen[[#Headers],[Beheerder]]),FALSE) -> NN | C32: =VLOOKUP(TransactiesIn[[#This Row],[ISIN]],Fondsen[],COLUMN(Fondsen[[#Headers],[Naam Fonds]]),FALSE) -> NN (L) Euro Equity - P Cap EUR | D32: =VLOOKUP(TransactiesIn[[#This Row],[ISIN]],Fondsen[],COLUMN(Fondsen[[#Headers],[Categorie]]),FALSE) -> aandelen eurozone | E32: 5845 | F32: 34403 | G32: 1 | H32: =IF(TransactiesIn[[#This Row],[Aantal]]<>0,TransactiesIn[[#This Row],[Investering in EUR]]/TransactiesIn[[#This Row],[Aantal]],"") -> 5845
A33: LU1056591487 | B33: =VLOOKUP(TransactiesIn[[#This Row],[ISIN]],Fondsen[],COLUMN(Fondsen[[#Headers],[Beheerder]]),FALSE) -> BNP | C33: =VLOOKUP(TransactiesIn[[#This Row],[ISIN]],Fondsen[],COLUMN(Fondsen[[#Headers],[Naam Fonds]]),FALSE) -> BNP Paribas L1 Eq Wld Qual Focus Cla-Cap | D33: =VLOOKUP(TransactiesIn[[#This Row],[ISIN]],Fondsen[],COLUMN(Fondsen[[#Headers],[Categorie]]),FALSE) -> aand. Wld | E33: 3640 | F33: 36220 | G33: 1 | H33: =IF(TransactiesIn[[#This Row],[Aantal]]<>0,TransactiesIn[[#This Row],[Investering in EUR]]/TransactiesIn[[#This Row],[Aantal]],"") -> 3640
A34: GB0002771169 | B34: =VLOOKUP(TransactiesIn[[#This Row],[ISIN]],Fondsen[],COLUMN(Fondsen[[#Headers],[Beheerder]]),FALSE) -> Thread | C34: =VLOOKUP(TransactiesIn[[#This Row],[ISIN]],Fondsen[],COLUMN(Fondsen[[#Headers],[Naam Fonds]]),FALSE) -> Threadn. Eur Sel Retail Net EUR KAP | D34: =VLOOKUP(TransactiesIn[[#This Row],[ISIN]],Fondsen[],COLUMN(Fondsen[[#Headers],[Categorie]]),FALSE) -> aand.eurozone ex UK | E34: 9908 | F34: 42089 | G34: 1 | H34: =IF(TransactiesIn[[#This Row],[Aantal]]<>0,TransactiesIn[[#This Row],[Investering in EUR]]/TransactiesIn[[#This Row],[Aantal]],"") -> 9908
A35: FR0010345389 | B35: =VLOOKUP(TransactiesIn[[#This Row],[ISIN]],Fondsen[],COLUMN(Fondsen[[#Headers],[Beheerder]]),FALSE) -> Lyxor | C35: =VLOOKUP(TransactiesIn[[#This Row],[ISIN]],Fondsen[],COLUMN(Fondsen[[#Headers],[Naam Fonds]]),FALSE) -> Lyxor UCITS ETF Stoxx Europe 600 Bas.Resour | D35: =VLOOKUP(TransactiesIn[[#This Row],[ISIN]],Fondsen[],COLUMN(Fondsen[[#Headers],[Categorie]]),FALSE) -> aand. Grondstof | E35: 12241 | F35: 42292 | G35: 1 | H35: =IF(TransactiesIn[[#This Row],[Aantal]]<>0,TransactiesIn[[#This Row],[Investering in EUR]]/TransactiesIn[[#This Row],[Aantal]],"") -> 12241
A36: LU0995123261 | B36: =VLOOKUP(TransactiesIn[[#This Row],[ISIN]],Fondsen[],COLUMN(Fondsen[[#Headers],[Beheerder]]),FALSE) -> Schrod | C36: =VLOOKUP(TransactiesIn[[#This Row],[ISIN]],Fondsen[],COLUMN(Fondsen[[#Headers],[Naam Fonds]]),FALSE) -> Schroders SISF UK Equity | D36: =VLOOKUP(TransactiesIn[[#This Row],[ISIN]],Fondsen[],COLUMN(Fondsen[[#Headers],[Categorie]]),FALSE) -> aand. UK | E36: 11230 | F36: 41409 | G36: 1 | H36: =IF(TransactiesIn[[#This Row],[Aantal]]<>0,TransactiesIn[[#This Row],[Investering in EUR]]/TransactiesIn[[#This Row],[Aantal]],"") -> 11230
A37: LU0318931192 | B37: =VLOOKUP(TransactiesIn[[#This Row],[ISIN]],Fondsen[],COLUMN(Fondsen[[#Headers],[Beheerder]]),FALSE) -> Fidel | C37: =VLOOKUP(TransactiesIn[[#This Row],[ISIN]],Fondsen[],COLUMN(Fondsen[[#Headers],[Naam Fonds]]),FALSE) -> Fid. China Foc Fd A EUR | D37: =VLOOKUP(TransactiesIn[[#This Row],[ISIN]],Fondsen[],COLUMN(Fondsen[[#Headers],[Categorie]]),FALSE) -> aand. China | E37: 20390 | F37: 41292 | G37: 1 | H37: =IF(TransactiesIn[[#This Row],[Aantal]]<>0,TransactiesIn[[#This Row],[Investering in EUR]]/TransactiesIn[[#This Row],[Aantal]],"") -> 20390
A43: TRANSACTIES UIT
A44: ISIN | B44: Beheerder | C44: Naam Fonds | D44: Categorie | E44: Opbrengst in EUR | F44: Datum verkoop | G44: Aantal | H44: Stukprijs
A45: LU0995123261 | B45: =VLOOKUP(TransactiesOut[[#This Row],[ISIN]],Fondsen[],COLUMN(Fondsen[[#Headers],[Beheerder]]),FALSE) -> Schrod | C45: =VLOOKUP(TransactiesOut[[#This Row],[ISIN]],Fondsen[],COLUMN(Fondsen[[#Headers],[Naam Fonds]]),FALSE) -> Schroders SISF UK Equity | D45: =VLOOKUP(TransactiesOut[[#This Row],[ISIN]],Fondsen[],COLUMN(Fondsen[[#Headers],[Categorie]]),FALSE) -> aand. UK | E45: 591 | F45: 42316 | G45: 0 | H45: =IF([Aantal]<>0,[Opbrengst in EUR]/[Aantal],"") -> 

Sheet Koersen
A1: Munt | B1: Koers | C1: Naam
A2: EUR | B2: 1 | C2: Euro
A3: USD | B3: 1.0769 | C3: Amerikaanse Dollar
A4: JPY | B4: 132.297 | C4: Japanse Yen
A5: GBP | B5: 0.7081 | C5: Britse Pond
A6: CHF | B6: 1.0782 | C6: Zwitserse Frank
A7: NOK | B7: 9.3568 | C7: Noorse kroon
A8: CAD | B8: 1.4334 | C8: Canadese Dollar
A9: AUD | B9: 1.5135 | C9: Australische Dollar
A10: CNY | B10: 6.8599 | C10: Chinese Yuan
A11: SEK | B11: 9.3124 | C11: Zweedse Kroon
